Cogmind - Beta 16 @@@ ROGUE MODE // 2025.12.28 @ 10:48:19 Player: Peregrine Result: Self-destructed Performance ------------- Evolutions (3) 1500 Regions Visited (7) 1400 Robots Destroyed (36) 180 Value Destroyed (966) 966 Prototype IDs (3) 60 Alien Tech Used (0) 0 Bonus (12) 12 TOTAL SCORE: 4118 Bonus ------- Follower Combat Kills 72 Friendly Fire -60 Cogmind --------- Core Integrity 298/700 Matter 292/300 Energy 130/150 System Corruption 0% Temperature Cool (0) Movement Rolling (100) Location -7/Factory Parts ------- > --- POWER (2) -------- Micro Nuclear Core > --- PROPULSION (5) --- Armored Huge Wheel Armored Huge Wheel Xenon Bombardment Thruster > --- UTILITY (4) ------ Signal Interpreter Advanced Terrain Scan Processor > --- WEAPON (2) ------- Cooled Plasma Cannon > --- INVENTORY (5) ---- Enhanced Autogun Flak Gun Remote Datajack Peak State ------------ > --- POWER ------------ Micro Nuclear Core > --- PROPULSION ------- Armored Huge Wheel Armored Huge Wheel Xenon Bombardment Thruster > --- UTILITY ---------- Signal Interpreter Advanced Terrain Scan Processor > --- WEAPON ----------- Arc Projector Cooled Plasma Cannon > --- INVENTORY -------- Enhanced Autogun Remote Datajack [Rating: 39] Favorites ----------- Power Ion Engine Engine Ion Engine Power Core Micro Nuclear Core Propulsion Aluminum Leg Leg Aluminum Leg Wheel Wheel Flight Unit Flight Unit Utility Signal Interpreter Device Heat Sink Storage Medium Storage Unit Processor Signal Interpreter Hackware Hacking Suite Weapon Light Assault Rifle Energy Gun Small Laser Energy Cannon Cooled Plasma Cannon Ballistic Gun Light Assault Rifle Launcher Rocket Launcher Special Weapon Remote Datajack Slashing Weapon Blade Saw Build | -11 -10 -10 -10 -9 -8 -8 -7 ------- Run | Yrd Mat Min Exi Min Mat Sto Fac Slots Evolved 6 | . . . . . 4 . 2 Power 1 | . . . . . . . 1 Propulsion 3 | . . . . . 2 . 1 Utility 2 | . . . . . 2 . . Weapon . | . . . . . . . . Parts Attached 41 | . 6 7 1 . 12 4 11 Power 8 | . 2 1 . . 3 1 1 Engine 6 | . 2 1 . . 2 1 . Core 2 | . . . . . 1 . 1 Reactor . | . . . . . . . . Propulsion 14 | . 2 4 . . 2 . 6 Treads . | . . . . . . . . Leg 2 | . 2 . . . . . . Wheel 4 | . . 2 . . . . 2 Hover . | . . . . . . . . Flight 8 | . . 2 . . 2 . 4 Utility 9 | . 2 1 . . 4 1 1 Device 3 | . . . . . 2 1 . Storage 2 | . 1 1 . . . . . Processor 2 | . 1 . . . . . 1 Hackware 2 | . . . . . 2 . . Protection . | . . . . . . . . Artifact . | . . . . . . . . Weapon 10 | . . 1 1 . 3 2 3 Energy Gun 3 | . . 1 . . 1 . 1 Energy Cannon 2 | . . . . . . 1 1 Ballistic Gun 2 | . . . . . 1 1 . Ballistic Cannon . | . . . . . . . . Launcher 1 | . . . 1 . . . . Special Weapon 1 | . . . . . . . 1 Impact Weapon . | . . . . . . . . Slashing Weapon 1 | . . . . . 1 . . Piercing Weapon . | . . . . . . . . Special Melee Weapon . | . . . . . . . . Unidentified Prototypes 3 | . . . . . . 2 1 Parts Lost 16 | . . 3 . . 5 2 6 Power 2 | . . . . . 2 . . Propulsion 8 | . . 2 . . 2 1 3 Utility 3 | . . . . . . 1 2 Weapon 3 | . . 1 . . 1 . 1 Highest Loss Streak 4 | . . 3 . . 4 2 3 To Critical Strikes . | . . . . . . . . Average Backups 6 | 5 6 8 7 8 6 5 4 Power . | 1 1 1 1 1 1 . . Propulsion 1 | 3 2 2 2 1 . . . Utility 1 | . 1 2 2 2 2 2 1 Weapon 1 | 1 1 1 1 2 . 1 2 Tool/Special . | . . . . . . . . Unused Backups 8 | . 4 1 . . . . 3 Power 2 | . 2 . . . . . . Propulsion 3 | . 2 1 . . . . . Utility 2 | . . . . . . . 2 Weapon . | . . . . . . . . Tool/Special 1 | . . . . . . . 1 Average Slot Usage (%) 75 | . 96 80 71 71 57 63 52 Engine 10 | . 14 14 14 14 6 7 . Leg 10 | . 28 14 . . . . . Wheel 1 | . . 3 . . 5 . 1 Flight 10 | . . 9 28 28 7 16 13 Device 1 | . . . . . . 11 4 Storage 9 | . 14 14 14 14 5 . . Processor 12 | . 10 14 14 14 9 9 14 Hackware 2 | . . . . . 8 11 4 Energy Gun 5 | . 14 3 . . 7 . . Ballistic Gun 6 | . 14 7 . . 4 1 3 Peak Build Rating 39 | 6 8 8 7 6 22 28 39 Average Rating 10 | 6 7 6 6 6 13 18 23 On Entrance 9 | 6 6 8 6 6 6 22 12 Avg Prop Armor Cover (%) 5 | . . . . . 7 . 3 Naked Turns . | . . . . . . . . Heaviest Build 18 | 10 17 17 8 8 16 18 17 Greatest Support 56 | 20 20 26 8 8 17 17 56 Greatest Overweight (x) 2 | . . 1 . . 1 1 2 Average Overweight (x) . | . . . . . . . . Largest Inventory Capacity 10 | 8 10 10 8 8 8 5 5 Average Capacity 7 | 8 9 9 8 8 6 5 5 Most Carried 10 | 5 8 10 8 8 8 5 5 Average Carried 6 | 4 6 8 7 8 5 4 4 Final Capacity 10 | 8 10 8 8 8 5 5 5 Final Carried 8 | 4 8 8 8 8 5 5 3 Class Distribution -------------------- 84% | Mutant 7% | Sprinter 4% | Hacker-Mutant 3% | Scavenger-Mutant Dominant Class ---------------- Mutant | -10/Materials Mutant | -10/Mines Mutant | -10/Exiles Mutant | -9/Mines Mutant | -8/Materials Scavenger-Mutant | -8/Storage Mutant | -7/Factory Resources | -11 -10 -10 -10 -9 -8 -8 -7 ----------- Run | Yrd Mat Min Exi Min Mat Sto Fac Matter Collected 815 | 200 106 84 . 21 174 54 176 Remotely . | . . . . . . . . Salvage Created 1284 | . 364 236 . . 331 111 242 Parts 58 | . 19 12 . . 14 8 5 Haulers Intercepted 3 | . 2 . . . 1 . . Recyclers Shooed . | . . . . . . . . Parts Field Recycled . | . . . . . . . . Retrieved Matter . | . . . . . . . . Parts Self-Destructed . | . . . . . . . . Prevented . | . . . . . . . . Parts Restored . | . . . . . . . . Kills | -11 -10 -10 -10 -9 -8 -8 -7 ------- Run | Yrd Mat Min Exi Min Mat Sto Fac Combat Hostiles Destroyed 28 | . 5 8 . . 8 2 5 Guns 18 | . 5 8 . . 5 . . Cannons 5 | . . . . . . 2 3 AOE 5 | . . . . . 3 . 2 Classes Destroyed 7 | . 4 1 . . 2 . . Worker 1 | . 1 . . . . . . Hauler 3 | . 2 . . . 1 . . Operator 2 | . 2 . . . . . . Watcher 1 | . . . . . 1 . . Swarmer 9 | . . 6 . . 3 . . Grunt 17 | . 5 2 . . 5 . 5 Sentry 3 | . . . . . 1 2 . Best Kill Streak 4 | . 2 3 . . 4 1 4 Combat Bots Only 4 | . 2 3 . . 4 1 4 Max Kills in Single Turn 2 | . 1 1 . . 1 1 2 Gunslinging . | . . . . . . . . Exploded 2 | . . . . . 1 . 2 Melee . | . . . . . . . . Uniques/NPCs Destroyed . | . . . . . . . . Combat | -11 -10 -10 -10 -9 -8 -8 -7 -------- Run | Yrd Mat Min Exi Min Mat Sto Fac Hostile Shots Fired 269 | . 29 57 . . 62 42 79 Missed 76 | . 7 7 . . 19 14 29 Hits 193 | . 22 50 . . 43 28 50 Melee 2 | . . . . . . 2 . Projectile 191 | . 22 50 . . 43 26 50 Critical Strikes 4 | . 1 1 . . 2 . . Damage Taken 2586 | . 266 498 . . 625 403 794 Core 910 | . 59 128 . . 159 162 402 Absorbed by Shields 51 | . . . . . . 51 . Regen/Repaired (Parts) 18 | . . . . . 18 . . Core Remaining (%) 55 | 100 . . . 25 . 41 . Volleys Fired 132 | . 47 39 1 . 29 6 10 Largest 2 | . 2 2 1 . 2 1 2 Hottest 119 | . 60 60 33 . 119 105 118 Shots Fired 206 | . 91 51 1 . 39 6 18 Gun 185 | . 91 51 . . 35 . 8 Cannon 16 | . . . . . . 6 10 Launcher 5 | . . . 1 . 4 . . Special . | . . . . . . . . Kinetic 87 | . 47 28 . . 12 . . Thermal 101 | . 44 23 . . 23 6 5 Explosive 5 | . . . 1 . 4 . . Electromagnetic 13 | . . . . . . . 13 Robot Hit Streak 16 | . 7 10 . . 5 4 16 Robot Miss Streak 5 | . 5 4 . . 3 2 1 Penetration Max . | . . . . . . . . Secondary Targets 3 | . . 2 . . 1 . . Max Gunslinging Chain 1 | . . 1 . . 1 . . Shots Hit Robots 134 | . 53 36 . . 24 4 17 Core Hits 71 | . 21 15 . . 23 2 10 Critical Kills . | . . . . . . . . Critical Parts Destroyed 1 | . 1 . . . . . . Critical Strikes 5 | . 1 2 . . 2 . . Burn 4 | . . 2 . . 2 . . Destroy 1 | . 1 . . . . . . Melee Attacks . | . . . . . . . . Impact . | . . . . . . . . Slashing . | . . . . . . . . Piercing . | . . . . . . . . Sneak Attacks . | . . . . . . . . Combat Hostiles . | . . . . . . . . Follow-up Attacks . | . . . . . . . . Damage Inflicted 2502 | . 536 384 . . 704 306 572 Guns 1396 | . 536 350 . . 419 . 91 Cannons 604 | . . . . . . 306 298 Explosions 468 | . . . . . 285 . 183 Melee . | . . . . . . . . Ramming 34 | . . 34 . . . . . Kinetic 605 | . 234 156 . . 215 . . Thermal 1381 | . 302 194 . . 204 306 375 Explosive 285 | . . . . . 285 . . Electromagnetic 197 | . . . . . . . 197 Impact . | . . . . . . . . Slashing . | . . . . . . . . Piercing . | . . . . . . . . Highest Corruption . | . . . . . . . . Average Corruption . | . . . . . . . . Corruption Purged . | . . . . . . . . Corruption Blocked . | . . . . . . . . Overload Shots 7 | . . . . . . 6 1 Overflow Damage 30 | . . . . . . 30 . Projectiles 30 | . . . . . . 30 . Explosions . | . . . . . . . . Melee . | . . . . . . . . Knockbacks 1 | . . 1 . . . . . Impact 1 | . . 1 . . . . . Kinetic . | . . . . . . . . Secondary . | . . . . . . . . Self-Inflicted Damage 3 | . . . . . 3 . . Shots 1 | . . . . . 1 . . Rammed . | . . . . . . . . Targets Rammed 3 | . . 3 . . . . . Kicked 3 | . . 3 . . . . . Crushed . | . . . . . . . . Highest Temperature 225 | . 144 66 . . 225 210 182 Average Temperature 51 | . 45 22 . . 70 100 53 Received Heat Transfer 1074 | . 168 132 . . 297 168 309 Effects 1 | . . . . . 1 . . Energy Bleed 1 | . . . . . 1 . . Siege Activations . | . . . . . . . . Martial Activations . | . . . . . . . . Shielding Activations . | . . . . . . . . Robots Disrupted . | . . . . . . . . Combat Hostiles . | . . . . . . . . Robots Corrupted . | . . . . . . . . Combat Hostiles . | . . . . . . . . Parts Fried . | . . . . . . . . Impact Corruptions . | . . . . . . . . Robots Melted . | . . . . . . . . Combat Hostiles . | . . . . . . . . Parts Melted 2 | . 1 . . . 1 . . Heat Transferred 2827 | . 675 669 . . 703 400 380 Parts Sabotaged . | . . . . . . . . Parts Stolen . | . . . . . . . . Parts Stripped . | . . . . . . . . Power Chain Reactions 1 | . . . . . . . 1 Alert | -11 -10 -10 -10 -9 -8 -8 -7 ------- Run | Yrd Mat Min Exi Min Mat Sto Fac Maximum Alert Level . | . . . . . . . . Low Security (%) 100 | 100 100 100 . 100 100 100 100 Level 1 . | . . . . . . . . Level 2 . | . . . . . . . . Level 3 . | . . . . . . . . Level 4 . | . . . . . . . . Level 5 . | . . . . . . . . High Security . | . . . . . . . . Max Security . | . . . . . . . . Peak Influence 163 | . 50 70 . . 141 129 163 Initial 44 | . . . . . . 31 44 Average 41 | . 10 18 . . 87 79 90 Influence Increases 1185 | . 150 195 . . 265 188 387 Destroy 0b10 Robot/C 620 | . 100 160 . . 160 100 100 Destroy 0b10 Robot/NC 35 | . 20 5 . . 10 . . Destroy Leader 148 | . 24 30 . . 44 30 20 Allied During Kill 21 | . . . . . 3 18 . Successful Hack 15 | . 6 . . . 5 . 4 Destroy Structure 46 | . . . . . 28 10 8 Partial Spotted 15 | . . . . . . . 15 Lose Combat Pursuer 285 | . . . . . 15 30 240 Influence Decreases 1027 | . 150 195 . . 190 164 328 Entered New Map 99 | . . . . . . 44 55 Time Decay 674 | . 129 185 . . 140 60 160 Lost Part 130 | . . 10 . . 40 20 60 Lost Ally 50 | . . . . . 10 40 . Purge Threat 74 | . 21 . . . . . 53 Squads Dispatched 8 | . 1 . . . 1 3 3 Investigation . | . . . . . . . . Extermination 1 | . . . . . . . 1 Reinforcement 4 | . 1 . . . 1 1 1 Assault 2 | . . . . . . 2 . Garrison 1 | . . . . . . . 1 Intercept . | . . . . . . . . Searches Triggered . | . . . . . . . . Construction Impeded . | . . . . . . . . Haulers Reinforced . | . . . . . . . . Active Scanning Responses . | . . . . . . . . Cargo Convoy Interrupts . | . . . . . . . . Stealth | -11 -10 -10 -10 -9 -8 -8 -7 --------- Run | Yrd Mat Min Exi Min Mat Sto Fac Distress Signals 8 | . 1 . . . 5 2 . Communications Jammed . | . . . . . . . . Distress Signals . | . . . . . . . . Times Spotted 92 | . 13 8 . . 17 29 25 Peak Tracking Total 20 | . 3 3 . . 7 20 8 Tactical Retreats 8 | . . . . . 1 1 6 Traps | -11 -10 -10 -10 -9 -8 -8 -7 ------- Run | Yrd Mat Min Exi Min Mat Sto Fac Traps Triggered 1 | . . . . . . 1 . Indirectly . | . . . . . . . . Trap Hack Attempts . | . . . . . . . . Triggered . | . . . . . . . . Disarmed . | . . . . . . . . Reprogrammed . | . . . . . . . . Reused . | . . . . . . . . Traps Extracted . | . . . . . . . . Installed . | . . . . . . . . Triggered . | . . . . . . . . Machines | -11 -10 -10 -10 -9 -8 -8 -7 ---------- Run | Yrd Mat Min Exi Min Mat Sto Fac Machines Disabled . | . . . . . . . . Max in Single Turn . | . . . . . . . . Machines Repaired . | . . . . . . . . Machines Dismantled . | . . . . . . . . Machines Sabotaged . | . . . . . . . . Overloaded Fab Kills . | . . . . . . . . Hacking | -11 -10 -10 -10 -9 -8 -8 -7 --------- Run | Yrd Mat Min Exi Min Mat Sto Fac Machines Accessed 15 | . 5 . 1 . 4 1 4 Terminals 11 | . 5 . . . 3 1 2 Fabricators . | . . . . . . . . Repair Stations 2 | . . . . . 1 . 1 Recycling Units . | . . . . . . . . Scanalyzers 1 | . . . . . . . 1 Garrison Access . | . . . . . . . . Total Hacks 45 | . 14 . 1 . 14 1 15 Successful 28 | . 9 . 1 . 8 1 9 Failed 17 | . 5 . . . 6 . 6 Catastrophic 2 | . . . . . . . 2 Database Lockouts . | . . . . . . . . Manual 24 | . 9 . 1 . 9 . 5 Terminals 32 | . 14 . . . 12 1 5 Fabricators . | . . . . . . . . Repair Stations 4 | . . . . . 2 . 2 Recycling Units . | . . . . . . . . Scanalyzers 8 | . . . . . . . 8 Garrison Access . | . . . . . . . . Terminal Hacks 10 | . 5 . 1 . 2 1 1 Record 1 | . . . 1 . . . . Open Door 1 | . . . . . . 1 . Repair Station Index 1 | . 1 . . . . . . Unreport Threat 2 | . 1 . . . . . 1 Locate Traps 2 | . 2 . . . . . . Registered Components 1 | . 1 . . . . . . Zone Layout 2 | . . . . . 2 . . Fabricator Hacks . | . . . . . . . . Repair Station Hacks 2 | . . . . . 2 . . Scan Component 1 | . . . . . 1 . . Repair 1 | . . . . . 1 . . Recycling Unit Hacks . | . . . . . . . . Scanalyzer 7 | . . . . . . . 7 Insert Component 1 | . . . . . . . 1 Analyze 1 | . . . . . . . 1 Retrieve Study 5 | . . . . . . . 5 Garrison Access Hacks . | . . . . . . . . Unauthorized Hacks 9 | . 4 . . . 4 . 1 Terminals 9 | . 4 . . . 4 . 1 Assimilate 3 | . 1 . . . 2 . . Botnet 6 | . 3 . . . 2 . 1 Fabricators . | . . . . . . . . Repair Stations . | . . . . . . . . Recycling Units . | . . . . . . . . Scanalyzers . | . . . . . . . . Garrison Access . | . . . . . . . . Data Cores Recovered . | . . . . . . . . Used . | . . . . . . . . Hacking Detections 12 | . 5 . . . 3 . 4 Full Trace Events 2 | . 2 . . . . . . Feedback Events . | . . . . . . . . Feedback Blocked . | . . . . . . . . Robot Schematics Acquired . | . . . . . . . . Robots Built . | . . . . . . . . Authchips . | . . . . . . . . Time . | . . . . . . . . Total Robot Build Rating . | . . . . . . . . Part Schematics Acquired 1 | . . . . . . . 1 Parts Built . | . . . . . . . . Authchips . | . . . . . . . . Time . | . . . . . . . . Total Part Build Rating . | . . . . . . . . Part Studies Acquired 5 | . . . . . . . 5 Parts Repaired 1 | . . . . . 1 . . Time 26 | . . . . . 26 . . Parts Recycled . | . . . . . . . . Recycled Matter . | . . . . . . . . Retrieved Matter . | . . . . . . . . Retrieved Components . | . . . . . . . . Parts Scanalyzed 1 | . . . . . . . 1 Part Schematics Acquired 1 | . . . . . . . 1 Parts Damaged . | . . . . . . . . Bothacking | -11 -10 -10 -10 -9 -8 -8 -7 ------------ Run | Yrd Mat Min Exi Min Mat Sto Fac Used RIF Installer . | . . . . . . . . Robots Hacked . | . . . . . . . . Non-combat . | . . . . . . . . Combat . | . . . . . . . . Robot Hacks Applied . | . . . . . . . . Relay Couplers Released . | . . . . . . . . Fabnet Peak Effective % . | . . . . . . . . Robots Rewired . | . . . . . . . . Allies Hacked . | . . . . . . . . Hacks Repelled . | . . . . . . . . Allies | -11 -10 -10 -10 -9 -8 -8 -7 -------- Run | Yrd Mat Min Exi Min Mat Sto Fac Total Allies 7 | . 1 3 . . 1 2 . Largest Group 3 | . 1 3 3 3 3 2 . Highest-Rated Group 62 | . 10 40 40 40 40 62 . Highest-Rated Ally 31 | . 10 16 16 16 16 31 . Total Orders . | . . . . . . . . Ally Attacks 26 | . . . . . 6 20 . Total Damage 365 | . . . . . 77 288 . Kills 3 | . . . . . . 3 . Allies Corrupted 1 | . . . . . 1 . . Allies Melted . | . . . . . . . . Intel | -11 -10 -10 -10 -9 -8 -8 -7 ------- Run | Yrd Mat Min Exi Min Mat Sto Fac Active Infowar (turns) . | . . . . . . . . Robot Analysis Total . | . . . . . . . . Derelict Logs Recovered 1 | . . 1 . . . . . Drone Launches . | . . . . . . . . Drone Recoveries . | . . . . . . . . Exploration | -11 -10 -10 -10 -9 -8 -8 -7 ------------- Run | Yrd Mat Min Exi Min Mat Sto Fac Turns Passed 2266 | 2 573 659 218 50 289 121 354 Spaces Moved 2579 | 1 353 620 420 51 286 176 672 Core 117 | . . . . . . . 117 Treads . | . . . . . . . . Legs 578 | 1 353 224 . . . . . Wheels 169 | . . 64 . . 87 . 18 Hover . | . . . . . . . . Flight 1715 | . . 332 420 51 199 176 537 Fastest Speed 32 | 120 120 37 37 37 34 34 32 Average Speed 59 | 120 120 72 37 37 52 38 39 Slowest Speed 200 | 120 120 190 37 37 95 114 200 Overloaded Moves . | . . . . . . . . Propulsion Burnouts . | . . . . . . . . Robots Hopped 20 | . . 2 . . 3 12 3 Potential Cave-ins . | . . . . . . . . Cave-ins Triggered . | . . . . . . . . Exploration Rate (%) 43 | 1 65 95 87 10 33 42 15 Regions Visited 7 Branch Regions 4 Pre-discovered Areas . | . . . . . . . . Known Exits Taken 6 | . 1 1 1 1 1 1 . Unknown Exits Taken 1 | 1 . . . . . . . Scrap Searched 1 | . . 1 . . . . . Spaces Dug . | . . . . . . . . Terrain Destroyed 42 | . . . 6 . 27 1 8 Melee . | . . . . . . . . Projectile 1 | . . . . . . 1 . AOE 41 | . . . 6 . 27 . 8 Terrain Rammed . | . . . . . . . . Walls Destroyed . | . . . . . . . . Machines Disabled . | . . . . . . . . Actions | -11 -10 -10 -10 -9 -8 -8 -7 --------- Run | Yrd Mat Min Exi Min Mat Sto Fac Total 3099 | 2 420 780 481 81 383 211 741 Wait 286 | . 4 102 59 29 37 24 31 Move 2536 | . 352 616 419 50 279 154 666 Hop 16 | . . 1 . . 3 9 3 Pick Up 27 | . 8 6 . 1 9 . 3 Fast Attach 18 | . . . . . 5 4 9 Attach 24 | . 1 5 1 . 10 . 7 Detach 11 | . . 1 1 . 2 2 5 Swap 9 | . 5 2 . . 1 . 1 Drop 30 | 2 3 5 . 1 8 5 6 Fire 132 | . 47 39 1 . 29 6 10 Melee . | . . . . . . . . Ram . | . . . . . . . . Kick 3 | . . 3 . . . . . Crush . | . . . . . . . . Escape Stasis 7 | . . . . . . 7 . Rewire . | . . . . . . . . Trap . | . . . . . . . . Miscellaneous . | . . . . . . . . Route ------- -11/Scrapyard -10/Materials (discovered 3 exits: *Mat x2 / *Min) -10/Mines (discovered 3 exits: *Mat x2 / *Exi) -10/Exiles -9/Mines -8/Materials -8/Storage -7/Factory History --------- Turn | Location | Event 3 | -11/Scrapyard | Discovered new exit (range 0) 3 | -11/Scrapyard | Entered Materials 271 | -10/Materials | Discovered new exit (range 4) 275 | -10/Materials | Identified exit to Materials 312 | -10/Materials | Build established: Mutant 478 | -10/Materials | Discovered exit to Materials (range 6) 558 | -10/Materials | Discovered new exit (range 14) 575 | -10/Materials | Identified exit to Mines 576 | -10/Materials | Entered Mines 646 | -10/Mines | Received a Rocket Launcher from a helpful Derelict 753 | -10/Mines | Found a Scrap Suit stashed away for nefarious purposes 904 | -10/Mines | Core integrity fell below 50% 950 | -10/Mines | Lost 3 parts (2n1w) 954 | -10/Mines | Learned Materials stockpile data 1049 | -10/Mines | Discovered exit to Materials (range 9) 1054 | -10/Mines | Assisted by bots powering up and referring to "LRC-V3" 1060 | -10/Mines | Discovered exit to Materials (range 5) 1136 | -10/Mines | Deemed a non-threat by the Exiles lab entrance 1136 | -10/Mines | Discovered new exit (range 5) 1211 | -10/Mines | Identified exit to Exiles 1235 | -10/Mines | Entered Exiles 1235 | -10/Exiles | Found Exiles lab abandoned 1235 | -10/Exiles | Accompanied by 3 allies 1390 | -10/Exiles | Discovered new exit (range 11) 1453 | -10/Exiles | Identified exit to Mines 1453 | -10/Exiles | Entered Mines 1453 | -9/Mines | Accompanied by 3 allies 1463 | -9/Mines | Discovered new exit (range 6) 1468 | -9/Mines | Met a Derelict bent on vengeance 1489 | -9/Mines | Identified exit to Materials 1503 | -9/Mines | Entered Materials 1503 | -8/Materials | Accompanied by 3 allies 1503 | -8/Materials | Evolved 4 slots: Propulsion x2, Utility x2 1555 | -8/Materials | Lost 3 allies 1563 | -8/Materials | Lost 4 parts (1p2n1w) 1728 | -8/Materials | Discovered new exit (range 18) 1762 | -8/Materials | Repaired Flight Unit 1789 | -8/Materials | Identified exit to Storage 1792 | -8/Materials | Entered Storage 1806 | -8/Storage | Met a pair of Derelict thieves 1900 | -8/Storage | Core integrity fell below 50% 1901 | -8/Storage | Discovered new exit (range 16) 1906 | -8/Storage | Identified exit to Factory 1913 | -8/Storage | Entered Factory 1913 | -7/Factory | Evolved 2 slots: Power x1, Propulsion x1 2178 | -7/Factory | Lost 3 parts (1n2u) 2247 | -7/Factory | Garrison activated, responded to threat 2253 | -7/Factory | Core integrity fell below 50% 2267 | -7/Factory | Self-destructed Last Messages --------------- 02247_ Y-54 Guardian calls for garrison reinforcements. 02247_ ALERT: Activating Garrison Access F002. 02249_ Arc Projector+ destroyed. 02252_ Fusion Modulator explodes. 02252_ Y-54 Guardian destroyed. 02252_ Fusion Modulator explodes. 02252_ T-07 Excavator destroyed. 02252_ G-47 Trooper destroyed. 02253_ U-05 Engineer lays Concrete. 02255_ Acquired 27 matter. 02255_ U-05 Engineer builds a Wall. 02257_ Acquired Flak Gun. 02258_ U-05 Engineer lays Concrete. 02259_ U-05 Engineer builds a Wall. 02260_ U-05 Engineer lays Concrete. 02261_ U-05 Engineer builds a Wall. 02261_ R-06 Scavenger collects Imp. Light Armor Plating. 02261_ Acquired 30 matter. 02262_ U-05 Engineer builds a Wall. 02265_ R-06 Scavenger collects Corrupted Imp. Heat Sink. Map ----- +----------------------------------------------------+ | ?????????????????????????????????????????????????? | | ?????????????????????????????????????????????????? | | ?????????????????????????????????????????????????? | | ?????????????????????????????????????????????????? | | ?????????????????????????????????????????????????? | | ?????????????????????????????????????????????????? | | ???????????????????????????????????????##???#????? | | ??????????????????????????????????????? ??? ????? | | ??????????????????????????????????????? ??? ????? | | ??????????????????????????????????????# ??" "???? | | ??????????????????????????????????????#= "?" "???# | | ??????????????????????????????????????# "?" "?? # | | ??????????????????????????????????????# ?? # | | ??????????????????????????????????????# """ """ # | | ??????????????????????????????????????#! """ """ # | | ??????????????????????????????????????# """ """ # | | ??????????????????????????????????????#* # | | ??????????????????????????????????????# """ """ # | | ??????????????????????????????????????# """ """ # | | ????????????????######????????????????# """ """ # | | ???????????????? ????????????????# # | | ????????????????!! ??####??????????# # | | ????????????????!! ###T ######+#############+## | | ????????????????! + /! | | ???????????????? # /[ | | ???????????????" """ + @[ "" "" | | ??????????????"" """ # "" "" | | ??????????????"" """ # u u """ """ | | ??????????? ? "" "" # ;;##### """ """ # | | ?????????# "" "" # ; " """ """ # | | ?????????# + ; " # | | ?????????# ! ##### ; ; "" "" # | | ?????????##############???##%% u "" "" # | | ??????????????????????????#" r """ """ # | | ??????????????????????????## ^ """ """ # | | ???????????????????????????# """ "?" # | | ???????????????????????????# ? # | | ???????????????????????????# ; " # | | ???????????????????????????# "; " ? !? | | ???????????????????????????# #" " ???? | | ???????????????????????????# "# [ " ???? | | ??????????????????????????? #"""""# ????? | | ?????????????????????????? [ #########"" ""#????? | | ??????????????????????????# ?????????"F "??????? | | ??????????????????????????####???????????????????? | | ?????????????????????????????????????????????????? | | ?????????????????????????????????????????????????? | | ?????????????????????????????????????????????????? | | ?????????????????????????????????????????????????? | | ?????????????????????????????????????????????????? | +----------------------------------------------------+ Best States ------------- Heat Dissipation 44 Energy Generation 18 Energy Capacity 265 Matter Stores 300 Matter Capacity 300 Sight Range 16 Terrain Scan Density 210 Additional Mass Support 9 Evasion (%) 63 Offensive Hacking 10 Defensive Hacking 10 Item Schematics ----------------- Cld. Plasma Cannon | -7/Factory | Scanalyzed Robot Schematics ------------------ None Fabricated ------------ Nothing Repaired ---------- Flight Unit | 10% | -8/Materials Studied --------- Xenon Bombardment Thruster | -7/Factory | Hacked VTOL Module | -7/Factory | Hacked Remote Datajack | -7/Factory | Hacked Mic. Nuclear Core | -7/Factory | Hacked Arc Projector | -7/Factory | Hacked Alien Tech Used ----------------- None Achievements -------------- None Challenges ------------ None Game ------ Seed WeldingRegenerativeLattice Manual? 0 Play Time 00:30:30 Cumulative 145.8 hours Start 2025.12.28 @ 09:38:19 End 2025.12.28 @ 10:48:19 Sessions 1 Manual Loads 0 Difficulty Rogue Special Mode None Game No. 174 Rogue 159 Adventurer 15 Explorer 0 Win Type - Total 7 Types 3/0/2/1/0/0/1/0/0/0 Lore% 47 Gallery% 68 Achievement% 46 Wizard Run 0 Options --------- Layout 0 ASCII 0 Keyboard 0 Movement Mouse Keybinds 0 Fullscreen 2 Font 36/Smallcaps Map View 76x50 Zoom Use 0% Tactical HUD 1 Map Filters NONE Filters NONE Steam 1 RUN: 708062cc-6330-4da9-90c6-270a16093c99